[Event "*** SCC Grand Prix: Titled Tuesday Blitz"]
[Site "Chess.com"]
[Date "2020.06.02"]
[Round "5"]
[White "MateSchmate"]
[Black "Mikhail_Golubev"]
[Result "0-1"]
[WhiteElo "2389"]
[BlackElo "2556"]
[TimeControl "180+1"]
[EndTime "10:58:53 PDT"]
[Termination "Mikhail_Golubev won on time"]

1. e4 {[%clk 0:03:00.9]} 1... c5 {[%clk 0:02:59.1]} 2. Nf3 {[%clk 0:02:59.2]}
2... d6 {[%clk 0:02:59.1]} 3. d4 {[%clk 0:02:59]} 3... Nf6 {[%clk 0:02:59.1]} 4.
Nc3 {[%clk 0:02:57.2]} 4... cxd4 {[%clk 0:02:59.2]} 5. Nxd4 {[%clk 0:02:58.1]}
5... Nc6 {[%clk 0:02:59.2]} 6. Be2 {[%clk 0:02:56.4]} 6... g6 {[%clk 0:02:58.5]}
7. Be3 {[%clk 0:02:55.4]} 7... Bg7 {[%clk 0:02:58.4]} 8. O-O {[%clk 0:02:52.8]}
8... O-O {[%clk 0:02:57.7]} 9. f3 {[%clk 0:02:45.2]} 9... d5 {[%clk 0:02:49.4]}
10. Nxc6 {[%clk 0:02:36.7]} 10... bxc6 {[%clk 0:02:49.3]} 11. e5 {[%clk
0:02:31.3]} 11... Nd7 {[%clk 0:02:46.7]} 12. f4 {[%clk 0:02:28.3]} 12... Rb8
{[%clk 0:02:41.9]} 13. Na4 {[%clk 0:02:22.8]} 13... e6 {[%clk 0:02:29.4]} 14. b3
{[%clk 0:02:15.8]} 14... Qa5 {[%clk 0:02:22.4]} 15. Qe1 {[%clk 0:02:10.8]} 15...
Qc7 {[%clk 0:02:02.6]} 16. Nc5 {[%clk 0:02:06.2]} 16... Nxe5 {[%clk 0:01:39.2]}
17. fxe5 {[%clk 0:01:57.9]} 17... Qxe5 {[%clk 0:01:27.9]} 18. Bf3 {[%clk
0:01:16.5]} 18... d4 {[%clk 0:01:21.1]} 19. Nd3 {[%clk 0:00:47.7]} 19... Qxe3+
{[%clk 0:01:20.4]} 20. Qxe3 {[%clk 0:00:44.1]} 20... dxe3 {[%clk 0:01:20.1]} 21.
Rae1 {[%clk 0:00:44.9]} 21... Ba6 {[%clk 0:01:18.8]} 22. Bxc6 {[%clk 0:00:41.3]}
22... Rbc8 {[%clk 0:01:16.2]} 23. Be4 {[%clk 0:00:39.4]} 23... f5 {[%clk
0:01:12.2]} 24. Bf3 {[%clk 0:00:36.1]} 24... Rxc2 {[%clk 0:01:12]} 25. Nb4
{[%clk 0:00:30.2]} 25... Bxf1 {[%clk 0:01:09.2]} 26. Nxc2 {[%clk 0:00:22.4]}
26... Bd3 {[%clk 0:01:08.8]} 27. Nxe3 {[%clk 0:00:20.3]} 27... Bd4 {[%clk
0:01:02.2]} 28. Kh1 {[%clk 0:00:19.1]} 28... e5 {[%clk 0:01:01]} 29. Nc4 {[%clk
0:00:18.4]} 29... e4 {[%clk 0:01:00.6]} 30. Be2 {[%clk 0:00:18.3]} 30... Bc3
{[%clk 0:00:58.6]} 31. Rc1 {[%clk 0:00:14.8]} 31... Bxe2 {[%clk 0:00:57.2]} 32.
Rxc3 {[%clk 0:00:13.6]} 32... Rc8 {[%clk 0:00:52.5]} 33. g3 {[%clk 0:00:12.1]}
33... Bxc4 {[%clk 0:00:47.7]} 34. bxc4 {[%clk 0:00:13]} 34... Rc5 {[%clk
0:00:47]} 35. Kg2 {[%clk 0:00:10.7]} 35... Kf7 {[%clk 0:00:47]} 36. Kf2 {[%clk
0:00:08.9]} 36... Ke6 {[%clk 0:00:46.9]} 37. Ke3 {[%clk 0:00:08.9]} 37... Ke5
{[%clk 0:00:46.7]} 38. a3 {[%clk 0:00:08.7]} 38... h6 {[%clk 0:00:46.6]} 39. h4
{[%clk 0:00:08.5]} 39... g5 {[%clk 0:00:46.7]} 40. hxg5 {[%clk 0:00:09.4]} 40...
hxg5 {[%clk 0:00:46.7]} 41. Rb3 {[%clk 0:00:07.9]} 41... f4+ {[%clk 0:00:46.1]}
42. gxf4+ {[%clk 0:00:07.7]} 42... gxf4+ {[%clk 0:00:45.6]} 43. Kd2 {[%clk
0:00:08.6]} 43... Rxc4 {[%clk 0:00:45.5]} 44. Rb7 {[%clk 0:00:07.6]} 44... Ra4
{[%clk 0:00:43.9]} 45. Rb5+ {[%clk 0:00:06.6]} 45... Kd4 {[%clk 0:00:43.6]} 46.
Rb7 {[%clk 0:00:06.5]} 46... Rxa3 {[%clk 0:00:39.9]} 47. Rd7+ {[%clk 0:00:07.4]}
47... Ke5 {[%clk 0:00:39.7]} 48. Rxa7 {[%clk 0:00:07.4]} 48... e3+ {[%clk
0:00:34.1]} 49. Ke2 {[%clk 0:00:05.3]} 49... Rxa7 {[%clk 0:00:33.9]} 0-1

[Event "*** SCC Grand Prix: Titled Tuesday Blitz"]
[Site "Chess.com"]
[Date "2020.06.02"]
[Round "5"]
[White "MariaFominykh"]
[Black "FMOlexandrProhorov"]
[Result "0-1"]
[WhiteElo "2264"]
[BlackElo "2078"]
[TimeControl "180+1"]
[EndTime "10:58:53 PDT"]
[Termination "FMOlexandrProhorov won on time"]

1. d4 {[%clk 0:03:00.9]} 1... g6 {[%clk 0:02:58]} 2. c4 {[%clk 0:03:01.2]} 2...
Bg7 {[%clk 0:02:57.5]} 3. Nf3 {[%clk 0:03:01.3]} 3... d6 {[%clk 0:02:57.5]} 4.
Nc3 {[%clk 0:03:01.4]} 4... Nc6 {[%clk 0:02:50.6]} 5. h3 {[%clk 0:02:59.1]} 5...
e5 {[%clk 0:02:48.9]} 6. d5 {[%clk 0:02:56.8]} 6... Nce7 {[%clk 0:02:48.6]} 7.
e4 {[%clk 0:02:56]} 7... f5 {[%clk 0:02:47.9]} 8. c5 {[%clk 0:01:52.3]} 8... Nf6
{[%clk 0:02:41.6]} 9. cxd6 {[%clk 0:01:47.2]} 9... cxd6 {[%clk 0:02:41.6]} 10.
Bb5+ {[%clk 0:01:39.6]} 10... Kf8 {[%clk 0:02:25.3]} 11. O-O {[%clk 0:01:33.8]}
11... h6 {[%clk 0:02:21.4]} 12. exf5 {[%clk 0:01:19.5]} 12... gxf5 {[%clk
0:02:20.9]} 13. Nh4 {[%clk 0:01:19]} 13... Bd7 {[%clk 0:02:12.2]} 14. a4 {[%clk
0:01:14.3]} 14... a6 {[%clk 0:02:04.2]} 15. Bxd7 {[%clk 0:01:09.1]} 15... Qxd7
{[%clk 0:02:04.1]} 16. a5 {[%clk 0:01:09.1]} 16... Kf7 {[%clk 0:01:57.4]} 17.
Be3 {[%clk 0:01:02.2]} 17... Rhf8 {[%clk 0:01:56.4]} 18. f4 {[%clk 0:00:57.7]}
18... e4 {[%clk 0:01:48.8]} 19. Bd4 {[%clk 0:00:57.3]} 19... Kg8 {[%clk
0:01:48]} 20. Kh1 {[%clk 0:00:38.4]} 20... Qe8 {[%clk 0:01:38.6]} 21. g4 {[%clk
0:00:31.3]} 21... fxg4 {[%clk 0:01:28.4]} 22. hxg4 {[%clk 0:00:32.2]} 22... Ng6
{[%clk 0:01:25.9]} 23. Nf5 {[%clk 0:00:30.6]} 23... Qd7 {[%clk 0:01:13.5]} 24.
Rf2 {[%clk 0:00:18.1]} 24... Rae8 {[%clk 0:01:11.9]} 25. Rh2 {[%clk 0:00:17]}
25... e3 {[%clk 0:00:55.5]} 26. Nxg7 {[%clk 0:00:14.6]} 26... Qxg7 {[%clk
0:00:50.8]} 27. g5 {[%clk 0:00:14.7]} 27... hxg5 {[%clk 0:00:46.3]} 28. fxg5
{[%clk 0:00:14.6]} 28... Ne5 {[%clk 0:00:40.1]} 29. gxf6 {[%clk 0:00:14.3]}
29... Rxf6 {[%clk 0:00:40]} 30. Bxe3 {[%clk 0:00:13.7]} 30... Ng4 {[%clk
0:00:37.4]} 31. Bd4 {[%clk 0:00:10.3]} 31... Ne5 {[%clk 0:00:35.1]} 32. Qg1
{[%clk 0:00:09.2]} 32... Rg6 {[%clk 0:00:35.1]} 33. Qf2 {[%clk 0:00:06.2]} 33...
Rf8 {[%clk 0:00:33.2]} 34. Qh4 {[%clk 0:00:06]} 34... Rg4 {[%clk 0:00:27.5]} 35.
Qh5 {[%clk 0:00:04.6]} 35... Rxd4 {[%clk 0:00:27]} 36. Rg1 {[%clk 0:00:04.2]}
36... Rg4 {[%clk 0:00:27]} 37. Rxg4 {[%clk 0:00:01.5]} 37... Nxg4 {[%clk
0:00:26.1]} 38. Rg2 {[%clk 0:00:02.2]} 38... Nf2+ {[%clk 0:00:24.6]} 39. Kg1
{[%clk 0:00:02.4]} 39... Qxg2+ {[%clk 0:00:04.4]} 0-1

[Event "*** SCC Grand Prix: Titled Tuesday Blitz"]
[Site "Chess.com"]
[Date "2020.06.02"]
[Round "5"]
[White "Kostya26"]
[Black "PavlovDanila"]
[Result "0-1"]
[WhiteElo "2418"]
[BlackElo "2621"]
[TimeControl "180+1"]
[EndTime "10:58:55 PDT"]
[Termination "PavlovDanila won by resignation"]

1. d4 {[%clk 0:03:00.9]} 1... Nf6 {[%clk 0:02:59.7]} 2. Nf3 {[%clk 0:02:56.1]}
2... g6 {[%clk 0:02:59.7]} 3. Bf4 {[%clk 0:02:56.4]} 3... Bg7 {[%clk 0:02:59.8]}
4. Nbd2 {[%clk 0:02:56.9]} 4... d6 {[%clk 0:03:00]} 5. e3 {[%clk 0:02:56.3]}
5... O-O {[%clk 0:03:00.5]} 6. h3 {[%clk 0:02:56.2]} 6... Nc6 {[%clk 0:03:00.7]}
7. Be2 {[%clk 0:02:54.3]} 7... Nd7 {[%clk 0:03:01.2]} 8. O-O {[%clk 0:02:52.6]}
8... e5 {[%clk 0:03:01.6]} 9. dxe5 {[%clk 0:02:52.8]} 9... dxe5 {[%clk 0:03:02]}
10. Bh2 {[%clk 0:02:52.5]} 10... f5 {[%clk 0:03:02.3]} 11. c3 {[%clk 0:02:51.9]}
11... g5 {[%clk 0:03:02.6]} 12. Qc2 {[%clk 0:02:47.9]} 12... Qe7 {[%clk
0:02:52.8]} 13. Rad1 {[%clk 0:02:43.7]} 13... h5 {[%clk 0:02:39.5]} 14. Ne1
{[%clk 0:02:17.8]} 14... g4 {[%clk 0:02:37.2]} 15. hxg4 {[%clk 0:02:18.7]} 15...
hxg4 {[%clk 0:02:37.2]} 16. f3 {[%clk 0:02:16.2]} 16... Bh6 {[%clk 0:01:59.7]}
17. fxg4 {[%clk 0:01:51.3]} 17... Bxe3+ {[%clk 0:01:57.6]} 18. Kh1 {[%clk
0:01:51.7]} 18... fxg4 {[%clk 0:01:42]} 19. Qg6+ {[%clk 0:01:19.4]} 19... Qg7
{[%clk 0:01:40.4]} 20. Bc4+ {[%clk 0:01:03.8]} 20... Kh8 {[%clk 0:01:36.9]} 21.
Qh5+ {[%clk 0:01:03.3]} 21... Qh6 {[%clk 0:01:04.1]} 22. Rxf8+ {[%clk
0:00:38.6]} 22... Nxf8 {[%clk 0:01:03.3]} 23. Qxh6+ {[%clk 0:00:30.4]} 23...
Bxh6 {[%clk 0:01:02.6]} 24. Ne4 {[%clk 0:00:31.3]} 24... Bf5 {[%clk 0:00:55.6]}
25. Nc5 {[%clk 0:00:16.3]} 25... Bf4 {[%clk 0:00:53.7]} 26. Ncd3 {[%clk
0:00:12.8]} 26... Bxh2 {[%clk 0:00:45.8]} 27. Kxh2 {[%clk 0:00:13.7]} 27... Rd8
{[%clk 0:00:45.1]} 28. Kg3 {[%clk 0:00:10.9]} 28... Ng6 {[%clk 0:00:42.9]} 29.
Nf2 {[%clk 0:00:08.9]} 29... Rxd1 {[%clk 0:00:41.6]} 30. Nxd1 {[%clk 0:00:09.8]}
30... Kg7 {[%clk 0:00:29.9]} 31. Ne3 {[%clk 0:00:08.2]} 31... Be4 {[%clk
0:00:22.6]} 32. Nxg4 {[%clk 0:00:06.6]} 32... a6 {[%clk 0:00:19]} 33. Bd3 {[%clk
0:00:04]} 33... Bd5 {[%clk 0:00:19]} 34. Bxg6 {[%clk 0:00:02.8]} 34... Kxg6
{[%clk 0:00:19.9]} 35. Nf3 {[%clk 0:00:02.6]} 35... e4 {[%clk 0:00:16.6]} 36.
Nfe5+ {[%clk 0:00:02.2]} 36... Nxe5 {[%clk 0:00:16.3]} 37. Nxe5+ {[%clk
0:00:03.1]} 37... Kf5 {[%clk 0:00:16.7]} 38. Ng4 {[%clk 0:00:03.5]} 38... Bxa2
{[%clk 0:00:16.4]} 39. Ne3+ {[%clk 0:00:04.4]} 39... Ke5 {[%clk 0:00:16]} 40.
Kh4 {[%clk 0:00:03.5]} 40... Kf4 {[%clk 0:00:14.9]} 41. Nc2 {[%clk 0:00:01.3]}
41... e3 {[%clk 0:00:13.8]} 42. g4 {[%clk 0:00:01.8]} 42... e2 {[%clk
0:00:12.5]} 43. g5 {[%clk 0:00:02.1]} 43... Bb1 {[%clk 0:00:12.7]} 44. Ne1
{[%clk 0:00:01.7]} 44... Ke3 {[%clk 0:00:12.6]} 45. Kg3 {[%clk 0:00:02.2]} 45...
Be4 {[%clk 0:00:12.3]} 46. Kg4 {[%clk 0:00:01.3]} 46... Kf2 {[%clk 0:00:11.9]}
0-1

[Event "*** SCC Grand Prix: Titled Tuesday Blitz"]
[Site "Chess.com"]
[Date "2020.06.02"]
[Round "5"]
[White "pedromartinez91"]
[Black "kintoho"]
[Result "0-1"]
[WhiteElo "2492"]
[BlackElo "2362"]
[TimeControl "180+1"]
[EndTime "10:58:56 PDT"]
[Termination "kintoho won on time"]

1. e4 {[%clk 0:03:00.9]} 1... c5 {[%clk 0:02:59.8]} 2. Nf3 {[%clk 0:03:00.6]}
2... Nf6 {[%clk 0:02:59.7]} 3. e5 {[%clk 0:02:59.9]} 3... Nd5 {[%clk 0:02:59.6]}
4. Nc3 {[%clk 0:03:00.4]} 4... e6 {[%clk 0:02:59.8]} 5. Nxd5 {[%clk 0:02:59.7]}
5... exd5 {[%clk 0:02:59.5]} 6. d4 {[%clk 0:03:00.6]} 6... Nc6 {[%clk
0:02:59.5]} 7. dxc5 {[%clk 0:02:52.5]} 7... Bxc5 {[%clk 0:02:59.2]} 8. Qxd5
{[%clk 0:02:50]} 8... d6 {[%clk 0:02:59.4]} 9. exd6 {[%clk 0:02:37.7]} 9... Qb6
{[%clk 0:02:59.4]} 10. Be3 {[%clk 0:01:53.6]} 10... Bxe3 {[%clk 0:02:53]} 11.
Qe4+ {[%clk 0:01:52.1]} 11... Be6 {[%clk 0:02:48.7]} 12. Qxe3 {[%clk 0:01:50.1]}
12... Qxb2 {[%clk 0:02:46.3]} 13. Rd1 {[%clk 0:01:47.6]} 13... O-O-O {[%clk
0:02:40.6]} 14. Bd3 {[%clk 0:01:32]} 14... Qb4+ {[%clk 0:02:23]} 15. Nd2 {[%clk
0:01:26.4]} 15... Bg4 {[%clk 0:02:15.3]} 16. f3 {[%clk 0:01:21.9]} 16... Rhe8
{[%clk 0:02:14.3]} 17. Be4 {[%clk 0:01:21.1]} 17... f5 {[%clk 0:01:57.4]} 18.
O-O {[%clk 0:01:10.1]} 18... fxe4 {[%clk 0:01:57.1]} 19. fxg4 {[%clk 0:01:04.1]}
19... Qd4 {[%clk 0:01:52.4]} 20. Qxd4 {[%clk 0:00:48.2]} 20... Nxd4 {[%clk
0:01:52.1]} 21. Nc4 {[%clk 0:00:48.8]} 21... Ne2+ {[%clk 0:01:47]} 22. Kf2
{[%clk 0:00:45.2]} 22... Nc3 {[%clk 0:01:46.8]} 23. Rde1 {[%clk 0:00:40.3]}
23... b5 {[%clk 0:01:45.3]} 24. Ne3 {[%clk 0:00:25.7]} 24... Rxd6 {[%clk
0:01:42.2]} 25. Kg3 {[%clk 0:00:21.6]} 25... Rd7 {[%clk 0:01:31.5]} 26. Rf5
{[%clk 0:00:19]} 26... a6 {[%clk 0:01:27.2]} 27. h4 {[%clk 0:00:16.2]} 27... g6
{[%clk 0:01:25.9]} 28. Rc5+ {[%clk 0:00:13.6]} 28... Rc7 {[%clk 0:01:26]} 29.
Rg5 {[%clk 0:00:14.1]} 29... Nxa2 {[%clk 0:01:20.4]} 30. h5 {[%clk 0:00:14.5]}
30... gxh5 {[%clk 0:01:18.5]} 31. gxh5 {[%clk 0:00:14.8]} 31... Nb4 {[%clk
0:01:18.2]} 32. Re2 {[%clk 0:00:13.7]} 32... a5 {[%clk 0:01:16.1]} 33. Rxb5
{[%clk 0:00:12.9]} 33... Ra7 {[%clk 0:01:16.1]} 34. Nc4 {[%clk 0:00:08]} 34...
Rg8+ {[%clk 0:01:09.3]} 35. Kh2 {[%clk 0:00:08]} 35... Nc6 {[%clk 0:00:59]} 36.
Rxe4 {[%clk 0:00:06.8]} 36... Rag7 {[%clk 0:00:58.9]} 37. Re2 {[%clk 0:00:05.7]}
37... Rg5 {[%clk 0:00:59]} 38. Rxg5 {[%clk 0:00:03.5]} 38... Rxg5 {[%clk
0:00:59]} 39. Nd6+ {[%clk 0:00:02.2]} 39... Kc7 {[%clk 0:00:57.1]} 40. Ne4
{[%clk 0:00:03.1]} 40... Rxh5+ {[%clk 0:00:56.5]} 41. Kg3 {[%clk 0:00:04]} 41...
a4 {[%clk 0:00:54.1]} 42. Kf4 {[%clk 0:00:03.7]} 42... a3 {[%clk 0:00:53.1]} 43.
Nc3 {[%clk 0:00:04]} 43... Rc5 {[%clk 0:00:51.8]} 44. Na2 {[%clk 0:00:03.7]}
44... Nd4 {[%clk 0:00:50.6]} 45. Re3 {[%clk 0:00:03.3]} 45... Nxc2 {[%clk
0:00:48.4]} 46. Rb3 {[%clk 0:00:03.1]} 46... Kd6 {[%clk 0:00:45.7]} 47. g4
{[%clk 0:00:03.2]} 47... Kd5 {[%clk 0:00:41.4]} 48. g5 {[%clk 0:00:03.5]} 48...
Kc4 {[%clk 0:00:40.3]} 49. Rc3+ {[%clk 0:00:03.7]} 49... Kd4 {[%clk 0:00:39.9]}
50. Rb3 {[%clk 0:00:03.8]} 50... Rc7 {[%clk 0:00:36.3]} 51. Rb5 {[%clk
0:00:02.5]} 51... Rf7+ {[%clk 0:00:35.7]} 52. Kg4 {[%clk 0:00:02.5]} 52... Kc4
{[%clk 0:00:34.8]} 53. Rb8 {[%clk 0:00:01.3]} 53... Rf2 {[%clk 0:00:34.7]} 0-1

[Event "*** SCC Grand Prix: Titled Tuesday Blitz"]
[Site "Chess.com"]
[Date "2020.06.02"]
[Round "5"]
[White "Michaelson_11"]
[Black "The_Machine04"]
[Result "0-1"]
[WhiteElo "2004"]
[BlackElo "2300"]
[TimeControl "180+1"]
[EndTime "10:58:56 PDT"]
[Termination "The_Machine04 won by checkmate"]

1. e4 {[%clk 0:03:00.9]} 1... d6 {[%clk 0:02:59.9]} 2. d4 {[%clk 0:03:00.7]}
2... Nf6 {[%clk 0:02:59.3]} 3. Nc3 {[%clk 0:03:00.1]} 3... e5 {[%clk 0:02:58.4]}
4. Nf3 {[%clk 0:02:59.5]} 4... Nbd7 {[%clk 0:02:57.9]} 5. Bc4 {[%clk 0:02:59.4]}
5... Be7 {[%clk 0:02:57.9]} 6. O-O {[%clk 0:02:59.5]} 6... c6 {[%clk 0:02:58.1]}
7. Re1 {[%clk 0:03:00]} 7... b5 {[%clk 0:02:58.3]} 8. Bf1 {[%clk 0:02:59.5]}
8... b4 {[%clk 0:02:53]} 9. Na4 {[%clk 0:02:53.4]} 9... O-O {[%clk 0:02:50.8]}
10. b3 {[%clk 0:02:53]} 10... Qc7 {[%clk 0:02:46.7]} 11. Nb2 {[%clk 0:02:39.7]}
11... Nb6 {[%clk 0:02:42.8]} 12. Bg5 {[%clk 0:02:23.8]} 12... h6 {[%clk
0:02:41]} 13. Bh4 {[%clk 0:02:14.7]} 13... Re8 {[%clk 0:02:35.9]} 14. Bg3 {[%clk
0:02:10.2]} 14... Bf8 {[%clk 0:02:33.4]} 15. Bd3 {[%clk 0:02:03.5]} 15... Nh5
{[%clk 0:02:29.9]} 16. dxe5 {[%clk 0:01:51.7]} 16... dxe5 {[%clk 0:02:29.5]} 17.
Nc4 {[%clk 0:01:31.5]} 17... Nxg3 {[%clk 0:02:26.2]} 18. hxg3 {[%clk 0:01:27.9]}
18... Nxc4 {[%clk 0:02:23.5]} 19. Bxc4 {[%clk 0:01:28.8]} 19... a5 {[%clk
0:02:23.5]} 20. Qe2 {[%clk 0:01:19.2]} 20... Be6 {[%clk 0:02:21.9]} 21. Rad1
{[%clk 0:01:02.5]} 21... a4 {[%clk 0:02:18.9]} 22. Bxe6 {[%clk 0:00:55.2]} 22...
Rxe6 {[%clk 0:02:17.2]} 23. Qc4 {[%clk 0:00:56.1]} 23... Ra5 {[%clk 0:02:05.1]}
24. Re3 {[%clk 0:00:35.1]} 24... Rc5 {[%clk 0:01:46.9]} 25. Qxb4 {[%clk
0:00:34.8]} 25... Rxc2 {[%clk 0:01:11.1]} 26. Qxa4 {[%clk 0:00:33.9]} 26... Bc5
{[%clk 0:01:08.5]} 27. Red3 {[%clk 0:00:19.4]} 27... Bxf2+ {[%clk 0:01:04.7]}
28. Kf1 {[%clk 0:00:18.9]} 28... Bb6 {[%clk 0:00:55.2]} 29. Qa8+ {[%clk
0:00:17.5]} 29... Kh7 {[%clk 0:00:52.5]} 30. Rd8 {[%clk 0:00:17.4]} 30... Qe7
{[%clk 0:00:37]} 31. Rh8+ {[%clk 0:00:13.8]} 31... Kg6 {[%clk 0:00:36.7]} 32.
Nh4+ {[%clk 0:00:13.1]} 32... Kg5 {[%clk 0:00:26.9]} 33. Nf3+ {[%clk 0:00:12.3]}
33... Kh5 {[%clk 0:00:21.6]} 34. Qa4 {[%clk 0:00:08.4]} 34... Qc5 {[%clk
0:00:18.4]} 35. g4+ {[%clk 0:00:05.4]} 35... Kxg4 {[%clk 0:00:15.1]} 36. Nh2+
{[%clk 0:00:05.5]} 36... Kh5 {[%clk 0:00:14.4]} 37. g4+ {[%clk 0:00:05.5]} 37...
Kg6 {[%clk 0:00:14.5]} 38. Nf3 {[%clk 0:00:01.3]} 38... Qf2# {[%clk 0:00:14]}
0-1

[Event "*** SCC Grand Prix: Titled Tuesday Blitz"]
[Site "Chess.com"]
[Date "2020.06.02"]
[Round "5"]
[White "Margarita2907"]
[Black "peixe64"]
[Result "0-1"]
[WhiteElo "2056"]
[BlackElo "2225"]
[TimeControl "180+1"]
[EndTime "10:58:57 PDT"]
[Termination "peixe64 won by resignation"]

1. e4 {[%clk 0:02:58.8]} 1... e5 {[%clk 0:02:59.9]} 2. Nf3 {[%clk 0:02:58.1]}
2... Nc6 {[%clk 0:03:00.4]} 3. Bb5 {[%clk 0:02:56.2]} 3... a6 {[%clk 0:03:00.2]}
4. Ba4 {[%clk 0:02:55.4]} 4... Nf6 {[%clk 0:03:00.2]} 5. d3 {[%clk 0:02:55.9]}
5... Bc5 {[%clk 0:02:58.4]} 6. O-O {[%clk 0:02:53.7]} 6... b5 {[%clk 0:02:57.2]}
7. Bb3 {[%clk 0:02:52.9]} 7... d6 {[%clk 0:02:57.1]} 8. c3 {[%clk 0:02:51.3]}
8... O-O {[%clk 0:02:56.1]} 9. Nbd2 {[%clk 0:02:49.3]} 9... Be6 {[%clk
0:02:54.3]} 10. h3 {[%clk 0:02:46.7]} 10... Bb6 {[%clk 0:02:50.6]} 11. Re1
{[%clk 0:02:41.5]} 11... h6 {[%clk 0:02:47]} 12. Nf1 {[%clk 0:02:38]} 12... Re8
{[%clk 0:02:40.2]} 13. Ng3 {[%clk 0:02:27.1]} 13... d5 {[%clk 0:02:25.7]} 14.
exd5 {[%clk 0:02:18.8]} 14... Bxd5 {[%clk 0:02:25.2]} 15. Bxd5 {[%clk 0:01:58]}
15... Nxd5 {[%clk 0:02:19.8]} 16. Ne4 {[%clk 0:01:49]} 16... f5 {[%clk
0:02:05.4]} 17. Ng3 {[%clk 0:01:46.4]} 17... Qf6 {[%clk 0:01:57.5]} 18. a4
{[%clk 0:01:19.6]} 18... Rad8 {[%clk 0:01:54]} 19. Qc2 {[%clk 0:01:16.4]} 19...
Kh8 {[%clk 0:01:36.8]} 20. axb5 {[%clk 0:00:51]} 20... axb5 {[%clk 0:01:36.3]}
21. b3 {[%clk 0:00:24]} 21... b4 {[%clk 0:01:30.8]} 22. c4 {[%clk 0:00:22.6]}
22... Nc3 {[%clk 0:01:28.6]} 23. Bb2 {[%clk 0:00:19.2]} 23... Nd4 {[%clk
0:01:11.9]} 24. Nxd4 {[%clk 0:00:18.6]} 24... exd4 {[%clk 0:01:12.5]} 25. Qd2
{[%clk 0:00:16.8]} 25... Bc5 {[%clk 0:01:02.4]} 26. Qf4 {[%clk 0:00:15.8]} 26...
Rf8 {[%clk 0:00:46.4]} 27. Qxc7 {[%clk 0:00:15.3]} 27... Bd6 {[%clk 0:00:43.9]}
28. Qc6 {[%clk 0:00:14]} 28... Rc8 {[%clk 0:00:23.7]} 29. Qb6 {[%clk 0:00:13.4]}
29... Rb8 {[%clk 0:00:21.8]} 30. Qc6 {[%clk 0:00:13.2]} 30... Rfc8 {[%clk
0:00:22.4]} 31. Qa6 {[%clk 0:00:13]} 31... Qg6 {[%clk 0:00:20.7]} 32. Ne2 {[%clk
0:00:09.5]} 32... Re8 {[%clk 0:00:17.2]} 33. Nxc3 {[%clk 0:00:06.6]} 33... bxc3
{[%clk 0:00:15.6]} 34. Ba3 {[%clk 0:00:05.7]} 34... Bxa3 {[%clk 0:00:14.3]} 35.
Rxe8+ {[%clk 0:00:04.1]} 35... Rxe8 {[%clk 0:00:15.2]} 36. Rxa3 {[%clk
0:00:04.4]} 36... Re1+ {[%clk 0:00:14.8]} 37. Kh2 {[%clk 0:00:04.1]} 37... Qxa6
{[%clk 0:00:13.6]} 38. Rxa6 {[%clk 0:00:03.2]} 38... Rd1 {[%clk 0:00:14.3]} 39.
c5 {[%clk 0:00:02.8]} 39... c2 {[%clk 0:00:13.5]} 40. c6 {[%clk 0:00:03.1]}
40... c1=Q {[%clk 0:00:13.7]} 41. c7 {[%clk 0:00:03.5]} 41... Qxc7+ {[%clk
0:00:13.3]} 0-1

[Event "*** SCC Grand Prix: Titled Tuesday Blitz"]
[Site "Chess.com"]
[Date "2020.06.02"]
[Round "5"]
[White "dpopadic"]
[Black "Bayernbk"]
[Result "1/2-1/2"]
[WhiteElo "2330"]
[BlackElo "2491"]
[TimeControl "180+1"]
[EndTime "10:58:59 PDT"]
[Termination "Game drawn by repetition"]

1. e4 {[%clk 0:03:00.9]} 1... e6 {[%clk 0:02:58.4]} 2. d4 {[%clk 0:03:00.1]}
2... d5 {[%clk 0:02:59.1]} 3. e5 {[%clk 0:03:00.3]} 3... c5 {[%clk 0:02:59.1]}
4. Qg4 {[%clk 0:03:00.3]} 4... Nc6 {[%clk 0:02:59.1]} 5. Nf3 {[%clk 0:03:00.3]}
5... Nxd4 {[%clk 0:02:59.4]} 6. Nxd4 {[%clk 0:02:59.7]} 6... cxd4 {[%clk
0:03:00.2]} 7. Bd3 {[%clk 0:02:59.8]} 7... Ne7 {[%clk 0:03:00.6]} 8. O-O {[%clk
0:02:58.5]} 8... Nc6 {[%clk 0:03:00.7]} 9. Re1 {[%clk 0:02:57.7]} 9... g6 {[%clk
0:02:52.5]} 10. a3 {[%clk 0:02:53.9]} 10... Be7 {[%clk 0:02:50.4]} 11. b4 {[%clk
0:02:46.6]} 11... h5 {[%clk 0:02:46.6]} 12. Qg3 {[%clk 0:02:46.5]} 12... Qc7
{[%clk 0:02:41.6]} 13. h4 {[%clk 0:02:25.5]} 13... Qd8 {[%clk 0:02:37.9]} 14.
Bg5 {[%clk 0:02:20.1]} 14... Bxg5 {[%clk 0:02:37.8]} 15. hxg5 {[%clk 0:02:19.9]}
15... Bd7 {[%clk 0:02:35.4]} 16. Nd2 {[%clk 0:02:18.9]} 16... a6 {[%clk
0:02:32.9]} 17. Nb3 {[%clk 0:02:18.7]} 17... Qc7 {[%clk 0:02:19.1]} 18. Qf4
{[%clk 0:02:13.4]} 18... Ne7 {[%clk 0:02:12.7]} 19. Nxd4 {[%clk 0:02:07.8]}
19... Rc8 {[%clk 0:02:05.3]} 20. Rad1 {[%clk 0:01:41.6]} 20... Rf8 {[%clk
0:01:50.4]} 21. Re3 {[%clk 0:01:27.4]} 21... Qb6 {[%clk 0:01:44.1]} 22. Ree1
{[%clk 0:01:15.7]} 22... Kd8 {[%clk 0:01:40.7]} 23. Rb1 {[%clk 0:01:02.2]} 23...
Rc3 {[%clk 0:01:30.5]} 24. Nb3 {[%clk 0:00:53.6]} 24... Ba4 {[%clk 0:01:16.4]}
25. Qd2 {[%clk 0:00:49.2]} 25... Qc7 {[%clk 0:00:51.3]} 26. Nc5 {[%clk
0:00:41.7]} 26... Rxa3 {[%clk 0:00:51.4]} 27. Qc1 {[%clk 0:00:26.4]} 27... Ra2
{[%clk 0:00:44.1]} 28. Ra1 {[%clk 0:00:23.7]} 28... Rxa1 {[%clk 0:00:42.6]} 29.
Qxa1 {[%clk 0:00:23.7]} 29... Bb5 {[%clk 0:00:35.8]} 30. Bxb5 {[%clk 0:00:22.1]}
30... axb5 {[%clk 0:00:36.3]} 31. Qa8+ {[%clk 0:00:19.5]} 31... Qc8 {[%clk
0:00:36.5]} 32. Nxb7+ {[%clk 0:00:17.5]} 32... Kc7 {[%clk 0:00:35.4]} 33. Qxc8+
{[%clk 0:00:14.8]} 33... Nxc8 {[%clk 0:00:33.6]} 34. Nc5 {[%clk 0:00:14.4]}
34... Nb6 {[%clk 0:00:33.9]} 35. Ra1 {[%clk 0:00:13.4]} 35... Ra8 {[%clk
0:00:34.5]} 36. Rxa8 {[%clk 0:00:08.8]} 36... Nxa8 {[%clk 0:00:35.2]} 37. Nb3
{[%clk 0:00:06.6]} 37... Kb6 {[%clk 0:00:28.4]} 38. Nd4 {[%clk 0:00:06.1]} 38...
Nc7 {[%clk 0:00:24.4]} 39. Kf1 {[%clk 0:00:04.4]} 39... Na6 {[%clk 0:00:21]} 40.
c3 {[%clk 0:00:03.5]} 40... Nb8 {[%clk 0:00:21.6]} 41. Ke2 {[%clk 0:00:03.5]}
41... Nc6 {[%clk 0:00:18.1]} 42. f4 {[%clk 0:00:03.2]} 42... Nxd4+ {[%clk
0:00:16.5]} 43. cxd4 {[%clk 0:00:02.8]} 43... Kc6 {[%clk 0:00:17.2]} 44. g3
{[%clk 0:00:02.7]} 44... Kd7 {[%clk 0:00:17.7]} 45. Kf3 {[%clk 0:00:03]} 45...
Ke7 {[%clk 0:00:18.3]} 46. Kg2 {[%clk 0:00:03.7]} 46... Kf8 {[%clk 0:00:18.3]}
47. Kh3 {[%clk 0:00:04.4]} 47... Kg7 {[%clk 0:00:18.8]} 48. Kh2 {[%clk
0:00:04.6]} 48... Kg8 {[%clk 0:00:19]} 49. Kh3 {[%clk 0:00:05.3]} 49... Kg7
{[%clk 0:00:19.5]} 50. Kh2 {[%clk 0:00:06.1]} 50... Kg8 {[%clk 0:00:20]} 51. Kh3
{[%clk 0:00:06.8]} 51... Kg7 {[%clk 0:00:20.6]} 1/2-1/2